[Event "Austrian Bundesliga 2023-24"]
[Site "Austria"]
[Date "2024.03.24"]
[Round "11.8"]
[White "Bluebaum, Matthias"]
[Black "Erdos, Viktor"]
[Result "1/2-1/2"]
[ECO "E01"]
[WhiteElo "2655"]
[BlackElo "2552"]
[Annotator "TA"]
[PlyCount "79"]
[EventDate "2023.10.21"]
[EventType "team-tourn"]
[EventCountry "AUT"]
[SourceTitle "playchess.com"]
[Source "ChessBase"]
[SourceQuality "1"]
[TimeControl "40/5400+30:1800+30"]

{[%evp 16,79,15,9,10,12,0,9,12,4,1,0,0,0,0,-1,0,0,0,-11,0,-14,-21,-27,-15,-8,-10,-11,-10,-5,-4,-4,-12,-9,0,0,0,0,0,0,0,0,0,0,23,43,40,27,36,39,43,39,47,0,0,0,0,0,0,0,0,0,0,0,0,0]} 1. d4 {[%emt 0:00:04]} Nf6 {[%emt 0:00:12]} 2. c4 {[%emt 0:00:06]} e6 {[%emt 0:00:04]} 3. g3 {[%emt 0:00:12]} d5 {[%emt 0:00:08]} 4. Bg2 {[%emt 0:00:04]} dxc4 {[%emt 0:00:37]} 5. Qa4+ {[%emt 0:00:33]} c6 {[%emt 0:18:06]} 6. Qxc4 {[%emt 0:00:37]} b5 {[%emt 0:00:34]} 7. Qc2 {[%emt 0:01:37]} Bb7 {[%emt 0:04:32]} 8. Nf3 {[%emt 0:01:54]} Nbd7 {[%emt 0:05:01]} 9. Ne5 {[%emt 0:11:01]} Nxe5 {[%emt 0:10:29]} 10. dxe5 {[%emt 0:00:04]} Nd5 {[%emt 0:00:04]} 11. O-O {[%emt 0:07:44]} Be7 {[%emt 0:02:43]} 12. Nc3 {[%emt 0:07:26]} O-O {[%emt 0:02:31]} 13. Rd1 {[%emt 0:09:36]} Qb8 {[%emt 0:02:24]} 14. Nxd5 {[%emt 0:08:40]} cxd5 {[%emt 0:00:27]} 15. f4 {[%emt 0:00:02]} Rc8 {[%emt 0:24:59]} 16. Qd3 {[%emt 0:00:48]} b4 {[%emt 0:00:09]} 17. Be3 {[%emt 0:01:45]} a5 {[%emt 0:00:08]} 18. Bd4 {[%emt 0:02:02]} Ba6 {[%emt 0:03:24]} 19. Qd2 {[%emt 0:00:04]} b3 {[%emt 0:03:29]} 20. axb3 {[%emt 0:04:47]} Qxb3 {[%emt 0:00:34]} 21. Qxa5 {[%emt 0:02:07]} Bxe2 {[%emt 0:05:09]} 22. Qxa8 {[%emt 0:00:17]} Qxd1+ {[%emt 0:00:10]} 23. Rxd1 {[%emt 0:00:07]} Rxa8 {[%emt 0:00:03][%cal Bc8a8,Ba8a4,Ba4c4,Bc4c5][%mdl 32]} 24. Rc1 {[%emt 0:00:10]} g6 {[%emt 0:02:18]} 25. Kf2 {[%emt 0:01:27]} Ra4 {[%emt 0:01:18]} 26. Ke3 {[%emt 0:03:51]} Bc4 {[%emt 0:01:03]} 27. Bf1 {[%emt 0:00:04]} Bxf1 {[%emt 0:01:01]} 28. Rxf1 $11 {[%emt 0:02:40][%mdl 4096] Endgame. KRB-KRB} Rc4 {[%emt 0:06:06]} 29. Kd3 {[%emt 0:01:11]} Bc5 {[%emt 0:00:48]} 30. Bxc5 {[%emt 0:01:34]} Rxc5 {[%emt 0:00:02] KR-KR} 31. b4 {[%emt 0:00:30]} Rc4 {[%emt 0:02:30]} 32. Rb1 {[%emt 0:00:06] [#] Threatens to win with b5.} Kf8 {[%emt 0:00:04]} 33. b5 {[%emt 0:01:05] Hoping for b6.} Ke7 {[%emt 0:00:07]} 34. b6 {[%emt 0:06:13]} (34. Ra1 $1 $14) 34... Rc8 {[%emt 0:00:06] The position is equal.} 35. Ra1 {[%emt 0:00:02] Strongly threatening Ra7+.} Rb8 {[%emt 0:00:50]} 36. Ra7+ {[%emt 0:00:18]} Ke8 {[%emt 0:00:07]} 37. Ra6 {[%emt 0:00:06] [#] Kd4 would now be deadly.} (37. b7 Kd7 $17) 37... Kd7 {[%emt 0:00:18]} 38. Ra7+ {[%emt 0:00:50]} (38. Kd4 $5 Kc6 $8 39. Ra7 $11) 38... Ke8 {[%emt 0:00:05]} 39. Ra6 {[%emt 0:00:28] And now Kd4 would win.} (39. b7 Kd7 40. h3 Kc6) 39... Kd7 {[%emt 0:00:06]} 40. Ra7+ {[%emt 0:00:00] Weighted Error Value: White=0.03 (flawless) /Black=0.02 (flawless) .  Mistake:       	White=1     	---        OK:         	White=21    	Black=13     Best:        	White=1     	Black=7} (40. Kd4 $5 Kc6 $8 41. Ra7 $11) 1/2-1/2

[Event "Austrian Bundesliga 2023-24"]
[Site "Austria"]
[Date "2024.03.24"]
[Round "11.9"]
[White "Ivanisevic, Ivan"]
[Black "Svane, Rasmus"]
[Result "0-1"]
[ECO "E39"]
[WhiteElo "2523"]
[BlackElo "2623"]
[Annotator "TA"]
[PlyCount "132"]
[EventDate "2023.10.21"]
[EventType "team-tourn"]
[EventCountry "AUT"]
[SourceTitle "playchess.com"]
[Source "ChessBase"]
[SourceQuality "1"]
[TimeControl "40/5400+30:1800+30"]

{[%evp 14,132,40,18,21,24,16,22,13,8,10,10,27,11,24,24,25,21,41,17,11,0,1,-38,-29,-37,-23,-21,-29,-41,-29,-42,-43,-48,-51,-51,-39,-83,-90,-91,-102,-95,-98,-93,-78,-143,-135,-128,-134,-135,-106,-131,-78,-172,-170,-181,-154,-158,-156,-145,-107,-115,-93,-119,-134,-107,0,-129,-106,-102,-83,-81,-72,-105,-79,-141,-148,-171,-179,-174,-166,-172,-181,-192,-187,-245,-234,-224,-183,-199,-107,-193,-186,-186,-203,-189,-187,-187,-124,-389,-355,-408,-408,-1125,-1144,-1130,-1055,-1177,-1158,-1404,-737,-628,-579,-1430,-1430,-1394,-1361,-1354,-1186,-926,-851]} 1. d4 {[%emt 0:00:03]} Nf6 {[%emt 0:00:05]} 2. c4 {[%emt 0:00:05]} e6 {[%emt 0:00:07]} 3. Nc3 {[%emt 0:00:04]} Bb4 {[%emt 0:00:07]} 4. Qc2 {[%emt 0:00:14]} c5 {[%emt 0:00:34]} 5. dxc5 {[%emt 0:06:19]} O-O {[%emt 0:00:07]} 6. a3 {[%emt 0:00:02]} Bxc5 {[%emt 0:00:08]} 7. Nf3 {[%emt 0:00:03]} d5 {[%emt 0:00:22]} 8. Bg5 {[%emt 0:00:42]} Be7 {[%emt 0:00:53]} 9. e3 {[%emt 0:00:25]} h6 {[%emt 0:00:43]} 10. Bh4 {[%emt 0:01:14]} Nc6 {[%emt 0:01:00] The position is equal.} 11. Be2 {[%emt 0:07:40]} dxc4 {[%emt 0:00:20]} 12. Bxc4 {[%emt 0:00:59]} Bd7 {[%emt 0:00:04]} 13. Rd1 {[%emt 0:01:27]} Rc8 {[%emt 0:02:46]} 14. Ba2 {[%emt 0:01:00]} Qc7 {[%emt 0:00:58]} 15. O-O {[%emt 0:04:18]} Rfd8 {[%emt 0:04:32]} 16. Bg3 {[%emt 0:10:42] Wards off Ne5} Qa5 {[%emt 0:01:55]} 17. Nd2 {[%emt 0:00:09]} b5 {[%emt 0:30:35][%cal Bb7b5,Bb5b4][%mdl 32]} 18. Nb3 {[%emt 0:02:47]} (18. Nde4 {with more complications.} Nxe4 19. Qxe4 b4 20. axb4 Qxb4 21. Bb1) 18... Qb6 {[%emt 0:04:13]} 19. Bb1 {[%emt 0:15:46]} g6 {[%emt 0:15:23]} 20. Qe2 {[%emt 0:02:13]} b4 {[%emt 0:07:47]} 21. Na4 {[%emt 0:10:25] [#]} Nd4 $1 {[%emt 0:00:47]} 22. Nxd4 {[%emt 0:00:05]} Bxa4 {[%emt 0:00:06]} 23. b3 {[%emt 0:00:04]} Be8 {[%emt 0:04:22]} 24. axb4 {[%emt 0:02:06]} Nd5 {[%emt 0:06:14][%cal Od5c3] Hoping for ...Nc3!} 25. Qf3 {[%emt 0:01:36]} Nc3 {[%emt 0:03:23]} (25... Bxb4 26. h4 $11) 26. Rc1 {[%emt 0:00:16]} Bb5 $1 {[%emt 0:02:10] Repels Bd3} (26... Bxb4 27. Bd3 $15) 27. Nxb5 {[%emt 0:10:22]} Qxb5 {[%emt 0:00:08]} 28. Kh1 {[%emt 0:00:45]} Bxb4 {[%emt 0:04:43]} 29. h3 {[%emt 0:03:53]} (29. Bh4 $142) 29... Ba3 {[%emt 0:02:17][%csl LRb3,LRc1]} 30. Rce1 {[%emt 0:00:33]} Bf8 {[%emt 0:02:03][%cal Od8d7] Black is much more active.} 31. Bh4 {[%emt 0:09:01]} Rd7 {[%emt 0:00:25]} 32. Bf6 {[%emt 0:00:54]} Bg7 {[%emt 0:01:45]} (32... Qxb3 $142 33. Rc1 a5) 33. e4 {[%emt 0:07:31]} (33. Bxc3 $17 Rxc3 34. Qa8+ Bf8 35. Be4) 33... Nxb1 {[%emt 0:03:05]} 34. Bxg7 {[%emt 0:00:06]} Kxg7 {[%emt 0:01:51]} 35. Rxb1 {[%emt 0:00:06]} Rd3 {[%emt 0:00:06]} 36. Qf4 {[%emt 0:00:47]} e5 {[%emt 0:00:43]} 37. Qh4 {[%emt 0:01:15]} Rxb3 {[%emt 0:00:21]} 38. Rbd1 {[%emt 0:01:15]} Rd3 {[%emt 0:01:01]} 39. Rb1 {[%emt 0:01:18]} Rb3 {[%emt 0:00:45]} 40. Rbd1 {[%emt 0:00:00]} Rb4 {[%emt 0:00:00]} 41. Qe7 {[%emt 0:03:12]} a5 {[%emt 0:06:51]} 42. f4 {[%emt 0:02:56]} Re8 $36 {[%emt 0:03:03][%mdl 2048] Black is in control.} 43. Qa7 {[%emt 0:00:47]} Qb6 {[%emt 0:07:12]} 44. Rd7 {[%emt 0:00:54]} (44. Qd7 $142 Qe6 45. fxe5) 44... Qf6 $1 $17 {[%emt 0:02:27]} 45. Qf2 {[%emt 0:15:32]} Re7 {[%emt 0:05:10]} (45... Rxe4 46. fxe5 Qxf2 47. Rxf2 $11) 46. Rxe7 {[%emt 0:00:51]} Qxe7 $19 {[%emt 0:00:05][%mdl 4096] Endgame. KQR-KQR} 47. f5 {[%emt 0:00:03] White threatens f6+ and mate.} Qf6 {[%emt 0:02:15]} (47... Rxe4 48. f6+ Kf8 49. fxe7+ Kxe7 50. Qxf7+ Kd6 51. Rf6+ (51. Qxg6+ Kd5 52. Qf7+ Kd4 53. Rd1+ Kc3 54. Qd5 Re3 55. Rc1+ Kb4 56. Qc4+ Ka3 57. Ra1+ Kb2 58. Ra2+ Kb1 59. Qc2#) 51... Kc5 52. Qc7+ (52. Rxg6 Rc4 53. Qc7+ Kb4 54. Qb6+ Kc3 55. Rg3+ Kd2 56. Qf2+ Kc1 57. Ra3 Kb1 58. Rb3+ Kc1 59. Rb2 h5 60. Qd2#) 52... Kd4 53. Rd6+ (53. Qxa5 Rf4 54. Rd6+ Ke4 55. g3 h5 56. gxf4 Kxf4 57. Qe1 Kg5 58. Qe4 h4 59. Rxg6+ Kh5 60. Qg4#) 53... Ke3 54. Qc3+ (54. Qxa5 Kf4 55. Qd5 Re1+ 56. Kh2 e4 57. Qd2+ Ke5 58. Qd4+ Kf4 59. Qf2+ Kg5 60. Rd5#) 54... Kf4 55. Qf3+ (55. Rxg6 Re3 56. Qc4+ e4 57. Qf7+ Ke5 58. Qf6+ Kd5 59. Qc6+ Kd4 60. Rd6+ Ke5 61. Rd5+ Kf4 62. Qd6#) 55... Kg5 56. Qxe4 h5 57. Rxg6#) 48. Qe2 {[%emt 0:00:05]} g5 {[%emt 0:00:18]} 49. Rc1 {[%emt 0:02:56]} (49. Kh2 {is a better defense.}) 49... a4 {[%emt 0:02:35]} 50. Kh2 {[%emt 0:00:07]} a3 {[%emt 0:02:05]} 51. Rc8 {[%emt 0:00:46]} Qb6 {[%emt 0:03:07] ...Rb1 is the strong threat.} 52. Qf3 {[%emt 0:00:46] [#]} a2 $1 {[%emt 0:00:36]} 53. Ra8 {[%emt 0:03:24] [#]} Qc6 $1 {[%emt 0:01:18][%csl LRa8,LRe4]} (53... Rb2 54. Qc3 $11) 54. Rxa2 {[%emt 0:03:22]} Qxe4 {[%emt 0:00:10]} (54... Rxe4 55. f6+ Kg6 (55... Qxf6 $2 56. Qxe4 Qf4+ 57. Qxf4 $18) 56. g4 $18) 55. Qxe4 {[%emt 0:00:31]} Rxe4 {[%emt 0:00:03] KR-KR} 56. Ra6 $2 {[%emt 0:00:42][%mdl 8192] Now White is beyond hope.} (56. g4 $17 {was necessary.}) 56... h5 {[%emt 0:00:41]} 57. g3 {[%emt 0:00:28]} g4 {[%emt 0:00:59]} 58. hxg4 {[%emt 0:00:05]} (58. h4 $142) 58... Rxg4 {[%emt 0:00:34] Threatens to win with ...h4. Black is clearly winning.} ({Less strong is} 58... hxg4 59. Kg2 $17) 59. Kg2 {[%emt 0:01:04]} Rg5 {[%emt 0:00:45]} 60. f6+ {[%emt 0:02:03]} Kg6 {[%emt 0:00:04] Strongly threatening ...h4.} 61. Kf3 {[%emt 0:00:03]} Kf5 {[%emt 0:00:32]} 62. Rb6 {[%emt 0:00:22]} Rg4 {[%emt 0:00:46] And now ...h4 would win.} 63. Rb8 {[%emt 0:00:40]} h4 {[%emt 0:00:45]} 64. gxh4 {[%emt 0:01:30]} Rxh4 {[%emt 0:00:04]} 65. Rb6 {[%emt 0:00:08]} Rh3+ {[%emt 0:00:07]} (65... Rh6 66. Ke3 $19) 66. Kg2 {[%emt 0:00:05]} Rh6 {[%emt 0:00:41] Weighted Error Value: White=0.22 (precise) /Black=0.10 (very precise) .  Loses game:     	White=1     	---        Mistake:       	White=5     	Black=1      Inaccurate:     	White=3     	Black=1      OK:         	White=26    	Black=19     Best:        	White=4     	Black=1      Strong:       	---       	Black=4      Brilliant:      	---       	Black=1} 0-1

[Event "Austrian Bundesliga 2023-24"]
[Site "Austria"]
[Date "2024.03.24"]
[Round "11.10"]
[White "Svane, Frederik"]
[Black "Perunovic, Milos"]
[Result "1-0"]
[ECO "B48"]
[WhiteElo "2617"]
[BlackElo "2535"]
[Annotator "TA"]
[PlyCount "73"]
[EventDate "2023.10.21"]
[EventType "team-tourn"]
[EventCountry "AUT"]
[SourceTitle "playchess.com"]
[Source "ChessBase"]
[SourceQuality "1"]
[TimeControl "40/5400+30:1800+30"]

{[%evp 15,73,19,39,9,14,6,20,25,22,25,39,35,41,12,8,4,41,37,65,50,62,7,3,12,14,14,31,18,10,10,41,40,41,23,353,357,643,556,740,650,621,462,484,504,510,508,499,499,492,370,383,363,363,291,29983,29984,29987,29988,29997,29998]} 1. e4 {[%emt 0:00:14]} c5 {[%emt 0:00:34]} 2. Nf3 {[%emt 0:00:19]} e6 {[%emt 0:00:28]} 3. d4 {[%emt 0:00:07]} cxd4 {[%emt 0:00:08]} 4. Nxd4 {[%emt 0:00:04]} Nc6 {[%emt 0:00:40]} 5. Nc3 {[%emt 0:00:06]} Qc7 {[%emt 0:00:46]} 6. Be3 {[%emt 0:01:30]} a6 {[%emt 0:01:07]} 7. Bd3 {[%emt 0:01:49]} b5 {[%emt 0:14:03][%cal Bb7b5,Bb5b4][%mdl 32]} 8. Nxc6 {[%emt 0:00:29]} Qxc6 {[%emt 0:00:32]} 9. Qd2 {[%emt 0:00:08]} Bb7 {[%emt 0:03:23]} 10. O-O-O {[%emt 0:00:16]} b4 {[%emt 0:19:36]} 11. Ne2 {[%emt 0:00:12] Die Stellung ist ausgeglichen.} Nf6 {[%emt 0:01:07][%cal Oc6a4]} 12. Kb1 {[%emt 0:00:44]} Qc7 {[%emt 0:08:16]} 13. f3 {[%emt 0:02:38]} Be7 {[%emt 0:04:25]} 14. Nd4 {[%emt 0:13:18]} O-O {[%emt 0:12:42]} 15. g4 {[%emt 0:03:59]} Rac8 {[%emt 0:11:52]} 16. h4 {[%emt 0:07:43]} Bc5 {[%emt 0:03:08]} 17. h5 {[%emt 0:20:18]} Qb6 {[%emt 0:01:02]} 18. Be2 {[%emt 0:12:18]} ({Besser ist} 18. Qf2 $14) 18... d5 $11 {[%emt 0:08:38]} 19. e5 {[%emt 0:01:59]} Nd7 {[%emt 0:00:11]} 20. f4 $36 {[%emt 0:00:19][%mdl 2048] Weiss steht aktiver.} f6 $1 {[%emt 0:00:05]} 21. exf6 {[%emt 0:14:56]} Nxf6 {[%emt 0:00:08]} 22. Bf3 {[%emt 0:00:12]} Ne4 {[%emt 0:03:39]} 23. Bxe4 {[%emt 0:00:01]} dxe4 {[%emt 0:00:08]} 24. Qh2 {[%emt 0:00:05] Mit der Idee f5.} Rcd8 $2 {[%emt 0:03:15][%mdl 8192] [#] Danach kann Schwarz die Partie nicht mehr halten.} (24... Rce8 $11 {und Schwarz steht sicher.}) 25. h6 $1 $18 {[%emt 0:01:35] Weiss droht hxg7 und Matt.} Rf7 {[%emt 0:01:11] [#]} (25... Bxd4 $2 26. hxg7 Bxg7 27. Qxh7+ (27. Bxb6 Rxd1+ 28. Rxd1 Bc6 $18) 27... Kf7 28. Bxb6 $18) (25... g6) 26. f5 $1 {[%emt 0:04:00]} Bxd4 {[%emt 0:01:15]} (26... Rxd4 27. Bxd4) 27. hxg7 {[%emt 0:07:27]} Rxg7 {[%emt 0:00:32]} 28. Rxd4 {[%emt 0:02:19]} Rxd4 {[%emt 0:00:48]} 29. Bxd4 {[%emt 0:00:12]} Qxd4 {[%emt 0:00:06]} 30. Qb8+ {[%emt 0:00:04]} (30. fxe6 $2 Bc8 (30... Rxg4 31. Qxh7+ Kf8 32. Qf7#) 31. g5 Re7 $19 (31... Rxg5 32. Qxh7+ Kf8 33. Qf7#) (31... Bxe6 $2 32. Qb8+ Kf7 33. Rf1+ Ke7 34. Qc7+ Bd7 35. Qf4 $19)) 30... Kf7 {[%emt 0:00:05] Droht stark ...Bc6.} 31. Qxb7+ {[%emt 0:00:03][%mdl 4096] Endspiel. KQR-KQR} Kf6 {[%emt 0:00:47]} 32. Qc8 {[%emt 0:00:07]} Rd7 {[%emt 0:01:11][%cal Od4d1] ( -> ...Qd1+!)} 33. b3 {[%emt 0:00:08]} (33. Qxa6 $2 Qd1+ 34. Rxd1 Rxd1#) 33... exf5 {[%emt 0:00:38]} 34. Qf8+ {[%emt 0:02:05]} (34. Qxa6+ Kg7 35. gxf5 Rf7 $18) 34... Rf7 $2 {[%emt 0:00:16]} (34... Ke5 $18 35. gxf5 (35. Qxf5+ Kd6 $16) 35... Rd6 36. Qe7+ (36. Rxh7 Qg1+ 37. Kb2 Qd4+ 38. Kb1 Qd1+ 39. Kb2 Qd4+ 40. Kb1 $11) 36... Kd5 37. Qb7+ (37. Rxh7 Qg1+ 38. Kb2 Qd4+ 39. Kb1 Qd1+ 40. Kb2 Qd4+ 41. Kb1 $11) (37. Qxh7 Kc6 $18) 37... Ke5 38. Qxh7 Kd5 39. Qb7+ Ke5) 35. g5+ $1 {[%emt 0:00:21] Weiß setzt Matt.} Ke6 {[%emt 0:00:23]} 36. Rh6+ {[%emt 0:00:11]} Ke5 {[%emt 0:00:15]} 37. Qb8+ {[%emt 0:00:09] Gewichteter Fehlerwert: Weiß=0.23 (präzise) /Schwarz=0.62.  Verlustzug:     	---       	Schwarz=1     Fehler:       	Weiß=1     	Schwarz=2     Ungenau:       	Weiß=1     	Schwarz=4     OK:         	Weiß=16    	Schwarz=7     Bester:       	---       	Schwarz=2     Stark:        	Weiß=2     	Schwarz=1} 1-0

[Event "Austrian Bundesliga 2023-24"]
[Site "Austria"]
[Date "2024.03.24"]
[Round "11.11"]
[White "Ftacnik, Lubomir"]
[Black "Wagner, Dennis"]
[Result "1/2-1/2"]
[ECO "D45"]
[WhiteElo "2453"]
[BlackElo "2620"]
[Annotator "TA"]
[PlyCount "108"]
[EventDate "2023.10.21"]
[EventType "team-tourn"]
[EventCountry "AUT"]
[SourceTitle "playchess.com"]
[Source "ChessBase"]
[SourceQuality "1"]
[TimeControl "40/5400+30:1800+30"]

{[%evp 42,108,0,-63,-71,-66,-25,-33,-32,-28,-16,-27,-18,-53,-11,-48,-52,-56,-53,-67,-64,-67,-57,-133,-114,-157,-80,-211,-209,-234,-212,-218,-212,-218,-208,-357,-210,-214,0,-351,0,-218,-205,-288,-260,-572,-588,-544,-550,-552,0,0,0,0,0,0,0,0,0,0,0,0,0,0,0,0,0,0,0]} 1. d4 {[%emt 0:00:04]} Nf6 {[%emt 0:00:06]} 2. Nf3 {[%emt 0:00:07]} d5 {[%emt 0:00:10]} 3. c4 {[%emt 0:00:06]} e6 {[%emt 0:00:06]} 4. Nc3 {[%emt 0:00:07]} c6 {[%emt 0:00:23]} 5. e3 {[%emt 0:00:22]} Nbd7 {[%emt 0:00:15]} 6. Qc2 {[%emt 0:00:13]} Bd6 {[%emt 0:00:10]} 7. Bd3 {[%emt 0:00:11]} dxc4 {[%emt 0:00:44]} 8. Bxc4 {[%emt 0:00:02]} b5 {[%emt 0:00:09]} 9. Be2 {[%emt 0:00:15]} O-O {[%emt 0:01:07]} 10. O-O {[%emt 0:00:11]} Qc7 {[%emt 0:00:25] D46: Semi-Slav: 5 e3 Nbd7 6 Bd3, Black avoids the Meran.} 11. e4 {[%emt 0:02:36]} e5 {[%emt 0:01:45]} 12. g3 {[%emt 0:01:00]} Re8 {[%emt 0:04:20]} 13. dxe5 {[%emt 0:02:10]} Nxe5 {[%emt 0:00:07]} 14. Bg5 $146 ({Predecessor:} 14. Nxe5 Bxe5 15. Bf3 Bh3 16. Re1 h6 17. Be3 Qe7 18. Ne2 Rac8 19. Nf4 Bxf4 20. Bxf4 {1-0 Grigoriants,S (2578)-Bajarani,U (2436) Chigorin Memorial 20th 2012 (6)}) 14... Bh3 {[%emt 0:13:38]} 15. Rfc1 {[%emt 0:13:45]} Rac8 {[%emt 0:39:15]} 16. Bxf6 {[%emt 0:21:43]} gxf6 {[%emt 0:00:05]} 17. Nd1 {[%emt 0:04:18]} Bf8 {[%emt 0:04:02]} 18. Nh4 {[%emt 0:05:36]} Ng6 {[%emt 0:09:34]} 19. Nf5 {[%emt 0:06:03]} Qe5 {[%emt 0:01:03]} 20. Nde3 {[%emt 0:00:41]} Qxe4 {[%emt 0:01:30]} 21. Qxe4 {[%emt 0:09:55]} Rxe4 {[%emt 0:00:02]} 22. Bf3 {[%emt 0:00:50]} (22. Bxb5 Rxe3 23. Nxe3 cxb5 24. Rxc8 Bxc8 $19) (22. Bf1 $11 Bxf5 (22... Bxf1 23. Kxf1 h5 24. Rc2 $11) 23. Nxf5) 22... Re5 $15 {[%emt 0:00:45]} 23. Nd4 {[%emt 0:02:17]} Bc5 {[%emt 0:02:40]} 24. Rd1 {[%emt 0:11:17]} Bxd4 {[%emt 0:00:25]} 25. Rxd4 {[%emt 0:00:03]} c5 {[%emt 0:00:09]} 26. Rd6 {[%emt 0:01:07]} f5 {[%emt 0:11:53]} 27. Rad1 {[%emt 0:03:43]} c4 {[%emt 0:00:30]} 28. Bg2 {[%emt 0:02:12]} Bxg2 {[%emt 0:00:31]} 29. Kxg2 {[%emt 0:00:07]} f4 {[%emt 0:02:44]} 30. Ng4 {[%emt 0:04:17]} Re2 {[%emt 0:00:15]} 31. Nh6+ {[%emt 0:01:09]} Kf8 {[%emt 0:00:15]} 32. gxf4 {[%emt 0:02:48]} (32. Nf5 $1 $15) 32... Rxb2 $17 {[%emt 0:04:40]} 33. f5 {[%emt 0:01:41]} Nf4+ {[%emt 0:00:03]} (33... Kg7 $142 $1 {[%cal Rg7h6]} 34. fxg6 Kxh6 35. gxf7+ Kg7) 34. Kf3 {[%emt 0:02:45]} (34. Kg3 $17 Ne2+ 35. Kh3 Nf4+ (35... Rxa2 36. f6 $11) 36. Kh4) 34... Nd3 $19 {[%emt 0:00:29]} 35. f6 {[%emt 0:00:05]} Rxf2+ {[%emt 0:00:26]} ({Inferior is} 35... Nxf2 36. Rd8+ Rxd8 37. Rxd8#) (35... Rxa2 36. Rg1 Ne5+ (36... Nxf2 37. Rg8#) (36... Rxf2+ $2 37. Ke3 $18) 37. Kg3 $11) 36. Kg3 {[%emt 0:00:16]} Re2 $1 {[%emt 0:02:03]} ({And not} 36... Rxa2 37. Rd7 Ra6 38. Rxf7+ Ke8 39. Re7+ Kf8 40. Rxh7 Rxf6 41. Rh8+ Ke7 42. Rxc8 $11) 37. Rd7 {[%emt 0:01:01]} Re3+ {[%emt 0:00:37]} (37... Rxa2 $2 {perishes.} 38. Rxf7+ Ke8 39. Re7+ Kf8 40. Rxh7 $18) 38. Kh4 {[%emt 0:00:44]} (38. Kg2 {was forced.} Re6 39. Rxf7+ Ke8 40. a4) 38... Re4+ {[%emt 0:00:16]} (38... Ke8 $142 39. Rb7 Re4+ 40. Kg3 Rc6 (40... Re3+ $2 41. Kh4 $19) 41. Rb8+ Kd7 42. Rb7+ Kc8) 39. Kg3 $19 {[%emt 0:00:12]} Re3+ {[%emt 0:00:04]} (39... Ke8 $142 $1 {[%cal Re8d7]} 40. Rxf7 Re3+ 41. Kg2 Rc6) 40. Kh4 $19 {[%emt 0:00:00]} Re4+ {[%emt 0:00:00]} 41. Kg3 {[%emt 0:02:56]} Ke8 {[%emt 0:15:30]} 42. Rxf7 {[%emt 0:07:04]} (42. Rxa7 $142 Re3+ 43. Kg2) 42... Re3+ $1 $19 {[%emt 0:00:40]} 43. Kh4 $2 {[%emt 0:04:06] [#]} (43. Kg2 Rc6 44. Rf1) 43... c3 $1 $19 {[%emt 0:00:32]} 44. Rxh7 {[%emt 0:10:37]} Rc4+ {[%emt 0:01:53]} 45. Kg5 {[%emt 0:02:33] [#]} Re5+ $2 {[%emt 0:00:42]} (45... Rc5+ $1 $19 46. Kh4 c2) 46. Kg6 $11 {[%emt 0:07:49]} Nf4+ {[%emt 0:13:15]} 47. Kg7 {[%emt 0:00:02]} Nh5+ {[%emt 0:00:55]} 48. Kg6 {[%emt 0:00:05]} Nf4+ {[%emt 0:00:10]} 49. Kg7 {[%emt 0:00:01]} Rg5+ {[%emt 0:00:21]} 50. Kh8 {[%emt 0:00:01]} Ng6+ {[%emt 0:01:21]} 51. Kg8 {[%emt 0:00:02]} Ne7+ {[%emt 0:00:34]} 52. Kh8 {[%emt 0:00:01]} Ng6+ {[%emt 0:01:00]} 53. Kg8 {[%emt 0:00:01]} Ne7+ {[%emt 0:00:46]} 54. Kh8 {[%emt 0:00:02]} Ng6+ {[%emt 0:00:27]} 1/2-1/2

[Event "Austrian Bundesliga 2023-24"]
[Site "Austria"]
[Date "2024.03.24"]
[Round "11.12"]
[White "Buhmann, Rainer"]
[Black "Borhy, Marcell"]
[Result "1/2-1/2"]
[ECO "D02"]
[WhiteElo "2568"]
[BlackElo "2370"]
[Annotator "TA"]
[PlyCount "63"]
[EventDate "2023.10.21"]
[EventType "team-tourn"]
[EventCountry "AUT"]
[SourceTitle "playchess.com"]
[Source "ChessBase"]
[SourceQuality "1"]
[TimeControl "40/5400+30:1800+30"]

{[%evp 22,63,0,0,16,0,5,0,0,-9,0,-7,0,0,0,0,0,-20,3,0,4,-18,-9,-8,-5,-6,0,0,0,0,0,0,0,0,0,0,0,0,0,0,0,0,0,0]} 1. d4 {[%emt 0:00:06]} d5 {[%emt 0:00:07]} 2. Nf3 {[%emt 0:00:08]} Nf6 {[%emt 0:00:06]} 3. c4 {[%emt 0:00:05]} e6 {[%emt 0:00:05]} 4. e3 {[%emt 0:00:15]} Be7 {[%emt 0:00:13]} 5. b3 {[%emt 0:00:23]} O-O {[%emt 0:00:12]} 6. Bd3 {[%emt 0:00:08]} c5 {[%emt 0:00:12]} 7. O-O {[%emt 0:00:49]} cxd4 {[%emt 0:00:15]} 8. exd4 {[%emt 0:00:06]} b6 {[%emt 0:00:11]} 9. Bb2 {[%emt 0:00:25]} Bb7 {[%emt 0:00:09]} 10. Nbd2 {[%emt 0:00:08]} Nbd7 {[%emt 0:00:14]} 11. Qe2 {[%emt 0:00:24]} Rc8 {[%emt 0:00:19]} 12. Rac1 {[%emt 0:00:56] Die Stellung ist ausgeglichen.} Re8 {[%emt 0:00:23]} 13. Rfd1 {[%emt 0:00:51]} Nf8 {[%emt 0:00:27]} 14. Ne5 {[%emt 0:08:01]} Ng6 {[%emt 0:00:43]} 15. Nxg6 {[%emt 0:05:49]} hxg6 {[%emt 0:00:07]} 16. Nf3 {[%emt 0:04:19][%cal Od3g6]} dxc4 {[%emt 0:01:26]} 17. bxc4 {[%emt 0:02:28]} Nd7 {[%emt 0:01:41]} 18. a4 {[%emt 0:14:21]} Qc7 {[%emt 0:07:16]} 19. a5 {[%emt 0:08:08]} Bd6 {[%emt 0:10:09]} 20. axb6 {[%emt 0:15:12]} axb6 {[%emt 0:00:14]} 21. Ne5 {[%emt 0:09:56]} Nxe5 {[%emt 0:02:52]} 22. dxe5 {[%emt 0:00:04]} Bc5 {[%emt 0:00:10]} 23. Qg4 {[%emt 0:05:41]} Red8 {[%emt 0:08:56]} 24. Bf1 {[%emt 0:03:37]} Rxd1 {[%emt 0:07:07]} 25. Rxd1 {[%emt 0:00:07]} Rd8 {[%emt 0:00:11]} 26. Rxd8+ {[%emt 0:02:24]} Qxd8 {[%emt 0:00:15]} 27. Bc3 {[%emt 0:01:12]} Bc6 {[%emt 0:17:22]} 28. h3 {[%emt 0:02:44]} Qd7 {[%emt 0:04:18]} 29. Qe2 {[%emt 0:01:46]} Qd8 {[%emt 0:02:47]} 30. Qg4 {[%emt 0:04:08]} Qd7 {[%emt 0:00:06]} 31. Qe2 {[%emt 0:01:28]} Qd8 {[%emt 0:00:09]} 32. Qg4 {[%emt 0:02:24] Eine ausgeglichene Partie nicht ohne Feinheiten.   Gewichteter Fehlerwert: Weiß=0.04 (makellos) /Schwarz=0.03 (makellos) .  OK:         	Weiß=11    	Schwarz=8} 1/2-1/2